[Event "*** SCC Grand Prix: Titled Tuesday Blitz"]
[Site "Chess.com"]
[Date "2020.06.02"]
[Round "6"]
[White "hectorfiori"]
[Black "oykuince"]
[Result "1-0"]
[WhiteElo "2377"]
[BlackElo "2082"]
[TimeControl "180+1"]
[EndTime "11:09:23 PDT"]
[Termination "hectorfiori won by resignation"]

1. e4 {[%clk 0:03:00.9]} 1... c5 {[%clk 0:02:59.5]} 2. Nf3 {[%clk 0:03:00.8]}
2... e6 {[%clk 0:02:59.4]} 3. d4 {[%clk 0:03:01.3]} 3... cxd4 {[%clk 0:02:59.6]}
4. Nxd4 {[%clk 0:03:02.2]} 4... Nc6 {[%clk 0:02:57.8]} 5. Nc3 {[%clk 0:03:01.9]}
5... Qc7 {[%clk 0:02:55.1]} 6. Ndb5 {[%clk 0:03:02.2]} 6... Qb8 {[%clk
0:02:54.2]} 7. Be3 {[%clk 0:03:02.7]} 7... a6 {[%clk 0:02:54.5]} 8. Bb6 {[%clk
0:03:02.9]} 8... axb5 {[%clk 0:02:54.4]} 9. Nxb5 {[%clk 0:03:03.8]} 9... Bb4+
{[%clk 0:02:54.3]} 10. c3 {[%clk 0:03:03.1]} 10... Ba5 {[%clk 0:02:54.3]} 11.
Nc7+ {[%clk 0:03:03.4]} 11... Qxc7 {[%clk 0:02:54.4]} 12. Bxc7 {[%clk
0:03:04.3]} 12... Bxc7 {[%clk 0:02:54.6]} 13. Qg4 {[%clk 0:03:03.9]} 13... g6
{[%clk 0:02:45]} 14. Bb5 {[%clk 0:03:03.9]} 14... Ne5 {[%clk 0:02:38.5]} 15. Qe2
{[%clk 0:03:03.8]} 15... Ne7 {[%clk 0:02:37.1]} 16. a4 {[%clk 0:03:01.2]} 16...
h5 {[%clk 0:02:28.4]} 17. h3 {[%clk 0:02:55.8]} 17... b6 {[%clk 0:02:23.4]} 18.
O-O {[%clk 0:02:53.6]} 18... Bb7 {[%clk 0:02:21.5]} 19. b4 {[%clk 0:02:52.5]}
19... g5 {[%clk 0:02:12.9]} 20. Rad1 {[%clk 0:02:26.6]} 20... h4 {[%clk
0:02:03.6]} 21. Qd2 {[%clk 0:02:20.1]} 21... Bxe4 {[%clk 0:01:50.4]} 22. Bxd7+
{[%clk 0:02:10.7]} 22... Kf8 {[%clk 0:01:48.9]} 23. Rfe1 {[%clk 0:01:37.3]}
23... Bd5 {[%clk 0:01:43.7]} 24. Bb5 {[%clk 0:01:30.7]} 24... g4 {[%clk
0:01:36.9]} 25. Qg5 {[%clk 0:01:04.8]} 25... gxh3 {[%clk 0:01:11.5]} 26. Rxe5
{[%clk 0:00:58.3]} 26... Bxe5 {[%clk 0:01:10.4]} 27. Qxe5 {[%clk 0:00:54.3]}
27... Rg8 {[%clk 0:01:05.2]} 28. g3 {[%clk 0:00:54.2]} 28... hxg3 {[%clk
0:01:01.1]} 29. fxg3 {[%clk 0:00:55.1]} 29... Rd8 {[%clk 0:00:20.5]} 30. c4
{[%clk 0:00:53.2]} 30... Ng6 {[%clk 0:00:17.1]} 31. Qf6 {[%clk 0:00:37.4]} 31...
h2+ {[%clk 0:00:16.2]} 32. Kf2 {[%clk 0:00:20.6]} 32... Rd6 {[%clk 0:00:08.1]}
33. cxd5 {[%clk 0:00:18.9]} 33... Rxd5 {[%clk 0:00:06.6]} 34. Rxd5 {[%clk
0:00:16.8]} 34... exd5 {[%clk 0:00:06.9]} 35. Kg2 {[%clk 0:00:10.5]} 35... Rh8
{[%clk 0:00:05.9]} 36. Kh1 {[%clk 0:00:09.6]} 36... Ne7 {[%clk 0:00:04.1]} 37.
Bd7 {[%clk 0:00:05.5]} 1-0

[Event "*** SCC Grand Prix: Titled Tuesday Blitz"]
[Site "Chess.com"]
[Date "2020.06.02"]
[Round "6"]
[White "Evgeny81"]
[Black "BilodeauA"]
[Result "0-1"]
[WhiteElo "2715"]
[BlackElo "2899"]
[TimeControl "180+1"]
[EndTime "11:09:24 PDT"]
[Termination "BilodeauA won by checkmate"]

1. d4 {[%clk 0:03:00.9]} 1... d5 {[%clk 0:02:59.9]} 2. c4 {[%clk 0:03:01]} 2...
dxc4 {[%clk 0:03:00.8]} 3. Nf3 {[%clk 0:03:00.7]} 3... a6 {[%clk 0:03:01.3]} 4.
e3 {[%clk 0:02:59.4]} 4... Bg4 {[%clk 0:03:01.2]} 5. Bxc4 {[%clk 0:02:57.6]}
5... e6 {[%clk 0:03:01.4]} 6. O-O {[%clk 0:02:55.9]} 6... Nc6 {[%clk 0:03:01]}
7. Nbd2 {[%clk 0:02:51.8]} 7... Nf6 {[%clk 0:03:01.2]} 8. b3 {[%clk 0:02:51.8]}
8... Be7 {[%clk 0:03:01.1]} 9. Bb2 {[%clk 0:02:51.9]} 9... O-O {[%clk
0:03:01.7]} 10. h3 {[%clk 0:02:47.9]} 10... Bh5 {[%clk 0:03:02]} 11. Rc1 {[%clk
0:02:46.6]} 11... Nd5 {[%clk 0:03:02.1]} 12. Bd3 {[%clk 0:02:37.6]} 12... f5
{[%clk 0:03:02]} 13. a3 {[%clk 0:02:28.6]} 13... Bd6 {[%clk 0:03:02]} 14. Nc4
{[%clk 0:02:21]} 14... Nce7 {[%clk 0:03:02.3]} 15. Be2 {[%clk 0:02:17.8]} 15...
c6 {[%clk 0:02:58.4]} 16. Nxd6 {[%clk 0:02:01.7]} 16... Qxd6 {[%clk 0:02:59.3]}
17. Ne5 {[%clk 0:01:59.1]} 17... Bxe2 {[%clk 0:03:00.2]} 18. Qxe2 {[%clk
0:01:59.5]} 18... Ng6 {[%clk 0:02:57.3]} 19. Nc4 {[%clk 0:01:55.5]} 19... Qe7
{[%clk 0:02:56]} 20. f3 {[%clk 0:01:54.2]} 20... Qg5 {[%clk 0:02:51.9]} 21. Rce1
{[%clk 0:01:51.6]} 21... Rad8 {[%clk 0:02:44.9]} 22. Bc1 {[%clk 0:01:50.2]}
22... Nh4 {[%clk 0:02:32.4]} 23. Qf2 {[%clk 0:01:41.8]} 23... Ng6 {[%clk
0:02:28.9]} 24. Kh2 {[%clk 0:01:27.9]} 24... Qe7 {[%clk 0:02:26.5]} 25. Qg3
{[%clk 0:01:24.8]} 25... Nf6 {[%clk 0:02:20.7]} 26. a4 {[%clk 0:01:21.4]} 26...
Nh5 {[%clk 0:02:19.4]} 27. Qf2 {[%clk 0:01:19.9]} 27... Qc7+ {[%clk 0:02:19.6]}
28. g3 {[%clk 0:01:16.4]} 28... Nf6 {[%clk 0:02:13]} 29. Ba3 {[%clk 0:01:13.5]}
29... Rf7 {[%clk 0:02:12.1]} 30. Kg2 {[%clk 0:01:12.5]} 30... Nd5 {[%clk
0:02:09.7]} 31. Qc2 {[%clk 0:01:03.2]} 31... b5 {[%clk 0:01:32.7]} 32. Nd2
{[%clk 0:00:59.8]} 32... Rf6 {[%clk 0:01:33.1]} 33. Rf2 {[%clk 0:00:51.3]} 33...
e5 {[%clk 0:01:28.6]} 34. dxe5 {[%clk 0:00:46.2]} 34... Nxe5 {[%clk 0:01:16]}
35. e4 {[%clk 0:00:46.5]} 35... Nd3 {[%clk 0:01:00.7]} 36. Ree2 {[%clk
0:00:42.7]} 36... Rg6 {[%clk 0:00:55.5]} 37. Nf1 {[%clk 0:00:39.9]} 37... N5f4+
{[%clk 0:00:53.8]} 38. Kh1 {[%clk 0:00:37.4]} 38... Nxe2 {[%clk 0:00:38.9]} 39.
Rxe2 {[%clk 0:00:36.6]} 39... Rxg3 {[%clk 0:00:32.6]} 40. Nxg3 {[%clk
0:00:19.9]} 40... Qxg3 {[%clk 0:00:33.5]} 41. Rg2 {[%clk 0:00:16.7]} 41... Qxf3
{[%clk 0:00:32]} 42. Qxc6 {[%clk 0:00:11.2]} 42... Nf2+ {[%clk 0:00:29.5]} 43.
Kh2 {[%clk 0:00:11.2]} 43... Qxh3+ {[%clk 0:00:21.4]} 44. Kg1 {[%clk 0:00:11.2]}
44... Rd1+ {[%clk 0:00:22]} 45. Kxf2 {[%clk 0:00:11.2]} 45... Rd2+ {[%clk
0:00:22.6]} 46. Ke1 {[%clk 0:00:07.2]} 46... Qe3+ {[%clk 0:00:23]} 47. Kf1
{[%clk 0:00:07.2]} 47... Rd1# {[%clk 0:00:23.3]} 0-1

[Event "*** SCC Grand Prix: Titled Tuesday Blitz"]
[Site "Chess.com"]
[Date "2020.06.02"]
[Round "6"]
[White "murtas73"]
[Black "GM_Levan_Pantsulaia"]
[Result "0-1"]
[WhiteElo "2668"]
[BlackElo "2844"]
[TimeControl "180+1"]
[EndTime "11:09:27 PDT"]
[Termination "GM_Levan_Pantsulaia won by resignation"]

1. d4 {[%clk 0:03:00.9]} 1... Nf6 {[%clk 0:02:47.4]} 2. c4 {[%clk 0:03:00.5]}
2... c5 {[%clk 0:02:47.4]} 3. d5 {[%clk 0:02:59.3]} 3... g6 {[%clk 0:02:47.9]}
4. Nc3 {[%clk 0:02:59]} 4... Bg7 {[%clk 0:02:48.5]} 5. e4 {[%clk 0:02:59.3]}
5... d6 {[%clk 0:02:48.8]} 6. Bd3 {[%clk 0:02:58.7]} 6... O-O {[%clk 0:02:48.8]}
7. h3 {[%clk 0:02:59.1]} 7... e6 {[%clk 0:02:49]} 8. Bg5 {[%clk 0:02:58]} 8...
exd5 {[%clk 0:02:48.5]} 9. cxd5 {[%clk 0:02:58]} 9... h6 {[%clk 0:02:42]} 10.
Be3 {[%clk 0:02:56.2]} 10... Re8 {[%clk 0:02:34.2]} 11. Nf3 {[%clk 0:02:55.2]}
11... a6 {[%clk 0:02:24.2]} 12. a4 {[%clk 0:02:54.1]} 12... Nbd7 {[%clk
0:02:24.5]} 13. O-O {[%clk 0:02:52.9]} 13... Nh5 {[%clk 0:02:18.5]} 14. Re1
{[%clk 0:02:49.6]} 14... Kh7 {[%clk 0:02:13.3]} 15. Rc1 {[%clk 0:02:43.2]} 15...
Rb8 {[%clk 0:02:12.3]} 16. Nd2 {[%clk 0:02:35.7]} 16... Qh4 {[%clk 0:02:07.2]}
17. Nc4 {[%clk 0:02:33]} 17... Qe7 {[%clk 0:01:27.3]} 18. Be2 {[%clk 0:02:24.6]}
18... b5 {[%clk 0:01:22.2]} 19. axb5 {[%clk 0:02:21.5]} 19... axb5 {[%clk
0:01:23.1]} 20. Na5 {[%clk 0:02:20.8]} 20... Qh4 {[%clk 0:01:21.9]} 21. Nc6
{[%clk 0:02:14.1]} 21... b4 {[%clk 0:01:16.2]} 22. Nxb8 {[%clk 0:02:11.4]} 22...
bxc3 {[%clk 0:01:16.5]} 23. Nxd7 {[%clk 0:02:10.5]} 23... cxb2 {[%clk
0:01:16.7]} 24. Rb1 {[%clk 0:02:00.2]} 24... Bxd7 {[%clk 0:01:16.1]} 25. Qd2
{[%clk 0:01:59.4]} 25... Rxe4 {[%clk 0:01:11.1]} 26. Bf1 {[%clk 0:01:52.1]}
26... Rb4 {[%clk 0:01:04.9]} 27. Rbd1 {[%clk 0:00:02.1]} 27... Bf5 {[%clk
0:00:58.1]} 28. g3 {[%clk 0:00:02.6]} 28... Nxg3 {[%clk 0:00:45.2]} 29. fxg3
{[%clk 0:00:02]} 29... Qxg3+ {[%clk 0:00:45.8]} 30. Qg2 {[%clk 0:00:02.9]} 30...
Qxg2+ {[%clk 0:00:42.9]} 31. Kxg2 {[%clk 0:00:03.1]} 31... b1=Q {[%clk
0:00:40.6]} 32. Rxb1 {[%clk 0:00:03.6]} 32... Rxb1 {[%clk 0:00:38.2]} 33. Rxb1
{[%clk 0:00:04.1]} 33... Bxb1 {[%clk 0:00:38.3]} 34. Kf3 {[%clk 0:00:05]} 34...
Be5 {[%clk 0:00:36.1]} 35. Bd2 {[%clk 0:00:04.2]} 35... Kg7 {[%clk 0:00:33.8]}
36. Bc4 {[%clk 0:00:03.8]} 36... f5 {[%clk 0:00:33]} 37. h4 {[%clk 0:00:03.8]}
37... Be4+ {[%clk 0:00:33]} 38. Kf2 {[%clk 0:00:03.2]} 38... Bf6 {[%clk
0:00:32]} 39. Kg3 {[%clk 0:00:03.2]} 39... g5 {[%clk 0:00:31.9]} 40. hxg5 {[%clk
0:00:02.4]} 40... hxg5 {[%clk 0:00:32.8]} 41. Ba5 {[%clk 0:00:02.8]} 41... Kg6
{[%clk 0:00:32.5]} 0-1

[Event "*** SCC Grand Prix: Titled Tuesday Blitz"]
[Site "Chess.com"]
[Date "2020.06.02"]
[Round "6"]
[White "Mimsychess"]
[Black "ehrenfeld"]
[Result "0-1"]
[WhiteElo "2258"]
[BlackElo "2441"]
[TimeControl "180+1"]
[EndTime "11:09:28 PDT"]
[Termination "ehrenfeld won on time"]

1. e4 {[%clk 0:03:00.9]} 1... e5 {[%clk 0:02:59.6]} 2. Nf3 {[%clk 0:03:00.4]}
2... Nc6 {[%clk 0:03:00.1]} 3. Bb5 {[%clk 0:03:00.9]} 3... a6 {[%clk 0:02:59.6]}
4. Ba4 {[%clk 0:03:01.4]} 4... Nf6 {[%clk 0:02:59.8]} 5. O-O {[%clk 0:03:01.7]}
5... Be7 {[%clk 0:02:59.9]} 6. Re1 {[%clk 0:03:02.2]} 6... b5 {[%clk 0:03:00.1]}
7. Bb3 {[%clk 0:03:02.7]} 7... d6 {[%clk 0:03:00.5]} 8. c3 {[%clk 0:03:01.7]}
8... O-O {[%clk 0:03:00.2]} 9. h3 {[%clk 0:03:01]} 9... Na5 {[%clk 0:03:00.2]}
10. Bc2 {[%clk 0:03:00.9]} 10... c5 {[%clk 0:03:00.6]} 11. d4 {[%clk 0:03:01.5]}
11... Qc7 {[%clk 0:03:00.9]} 12. Nbd2 {[%clk 0:02:57.5]} 12... Bd7 {[%clk
0:03:00.7]} 13. Nf1 {[%clk 0:02:46.6]} 13... Rfe8 {[%clk 0:02:59.1]} 14. Ng3
{[%clk 0:02:45.2]} 14... Nc4 {[%clk 0:02:58.1]} 15. b3 {[%clk 0:02:41.5]} 15...
Nb6 {[%clk 0:02:57.7]} 16. d5 {[%clk 0:02:41.8]} 16... c4 {[%clk 0:02:52.3]} 17.
Be3 {[%clk 0:02:36.4]} 17... Reb8 {[%clk 0:02:41.6]} 18. Qd2 {[%clk 0:02:27.5]}
18... a5 {[%clk 0:02:39.9]} 19. Bg5 {[%clk 0:02:01.3]} 19... Qd8 {[%clk
0:02:32.8]} 20. Nh4 {[%clk 0:01:59.2]} 20... g6 {[%clk 0:02:29.8]} 21. f4 {[%clk
0:01:52.6]} 21... Ne8 {[%clk 0:02:15.5]} 22. Nf3 {[%clk 0:01:46.6]} 22... cxb3
{[%clk 0:01:47.7]} 23. axb3 {[%clk 0:01:45.8]} 23... a4 {[%clk 0:01:47.8]} 24.
fxe5 {[%clk 0:01:30.5]} 24... Bxg5 {[%clk 0:01:35]} 25. Nxg5 {[%clk 0:01:27.9]}
25... dxe5 {[%clk 0:01:34.3]} 26. Nf3 {[%clk 0:01:11.6]} 26... Qe7 {[%clk
0:01:32]} 27. Qh6 {[%clk 0:01:02.1]} 27... Nd6 {[%clk 0:01:17.3]} 28. Rf1 {[%clk
0:00:38.5]} 28... f6 {[%clk 0:01:14.4]} 29. Nh4 {[%clk 0:00:36.5]} 29... Qg7
{[%clk 0:01:13.1]} 30. Qe3 {[%clk 0:00:35.2]} 30... Qe7 {[%clk 0:00:54.8]} 31.
b4 {[%clk 0:00:33.1]} 31... Nbc4 {[%clk 0:00:51.1]} 32. Qf2 {[%clk 0:00:32.8]}
32... Rf8 {[%clk 0:00:48.6]} 33. Bd3 {[%clk 0:00:32.5]} 33... Kh8 {[%clk
0:00:45.3]} 34. Kh2 {[%clk 0:00:27]} 34... f5 {[%clk 0:00:42.8]} 35. Nf3 {[%clk
0:00:17]} 35... f4 {[%clk 0:00:40.1]} 36. Ne2 {[%clk 0:00:17.1]} 36... g5 {[%clk
0:00:38.2]} 37. Bxc4 {[%clk 0:00:16.2]} 37... Nxc4 {[%clk 0:00:37.5]} 38. Qc5
{[%clk 0:00:16.1]} 38... Nd6 {[%clk 0:00:32.5]} 39. Qf2 {[%clk 0:00:08.1]} 39...
Rg8 {[%clk 0:00:29.3]} 40. Kh1 {[%clk 0:00:05.5]} 40... h5 {[%clk 0:00:28.1]}
41. Nh2 {[%clk 0:00:04.8]} 41... g4 {[%clk 0:00:26.8]} 42. hxg4 {[%clk
0:00:04.9]} 42... hxg4 {[%clk 0:00:26.4]} 43. g3 {[%clk 0:00:04.7]} 43... f3
{[%clk 0:00:24.3]} 44. Ng1 {[%clk 0:00:02.8]} 44... Nxe4 {[%clk 0:00:21.3]} 45.
Qe1 {[%clk 0:00:02.1]} 45... Qh7 {[%clk 0:00:19.2]} 0-1

[Event "*** SCC Grand Prix: Titled Tuesday Blitz"]
[Site "Chess.com"]
[Date "2020.06.02"]
[Round "6"]
[White "PavlovDanila"]
[Black "GM_LOADING"]
[Result "1-0"]
[WhiteElo "2625"]
[BlackElo "2450"]
[TimeControl "180+1"]
[EndTime "11:09:29 PDT"]
[Termination "PavlovDanila won by resignation"]

1. e4 {[%clk 0:03:00.9]} 1... e5 {[%clk 0:02:59.8]} 2. Nf3 {[%clk 0:03:00.8]}
2... Nc6 {[%clk 0:03:00]} 3. Bb5 {[%clk 0:03:01.2]} 3... g6 {[%clk 0:03:00.1]}
4. Nc3 {[%clk 0:02:53.1]} 4... Bg7 {[%clk 0:02:57.4]} 5. Nd5 {[%clk 0:02:43.2]}
5... a6 {[%clk 0:02:32.7]} 6. Ba4 {[%clk 0:02:39.8]} 6... Nge7 {[%clk
0:02:27.3]} 7. O-O {[%clk 0:02:35.3]} 7... O-O {[%clk 0:02:24.5]} 8. Re1 {[%clk
0:02:35.1]} 8... d6 {[%clk 0:02:22.8]} 9. Nxe7+ {[%clk 0:02:32.6]} 9... Nxe7
{[%clk 0:02:22.1]} 10. h3 {[%clk 0:02:32.3]} 10... h6 {[%clk 0:01:51.1]} 11. d3
{[%clk 0:02:20.7]} 11... f5 {[%clk 0:01:45.6]} 12. Bb3+ {[%clk 0:02:16.1]} 12...
Kh7 {[%clk 0:01:45.3]} 13. c3 {[%clk 0:02:09.6]} 13... f4 {[%clk 0:01:39.1]} 14.
d4 {[%clk 0:02:06.4]} 14... Qe8 {[%clk 0:01:09.1]} 15. Bc2 {[%clk 0:01:54.5]}
15... g5 {[%clk 0:01:07.6]} 16. Nh2 {[%clk 0:01:53.4]} 16... Nc6 {[%clk
0:00:59.5]} 17. b3 {[%clk 0:01:40.4]} 17... Qg6 {[%clk 0:00:55.2]} 18. Bb2
{[%clk 0:01:27.7]} 18... h5 {[%clk 0:00:52.4]} 19. f3 {[%clk 0:01:25.8]} 19...
Bd7 {[%clk 0:00:31.1]} 20. a4 {[%clk 0:01:05.1]} 20... Bf6 {[%clk 0:00:31.1]}
21. Qd3 {[%clk 0:00:56.2]} 21... Kg7 {[%clk 0:00:23.7]} 22. b4 {[%clk
0:00:52.7]} 22... g4 {[%clk 0:00:20.3]} 23. fxg4 {[%clk 0:00:50.5]} 23... hxg4
{[%clk 0:00:21.2]} 24. Nxg4 {[%clk 0:00:47.2]} 24... Bxg4 {[%clk 0:00:20.9]} 25.
hxg4 {[%clk 0:00:48.1]} 25... Rh8 {[%clk 0:00:20.8]} 26. b5 {[%clk 0:00:46.8]}
26... Ne7 {[%clk 0:00:19.8]} 27. Kf1 {[%clk 0:00:41.3]} 27... Qxg4 {[%clk
0:00:15.4]} 28. Qf3 {[%clk 0:00:40.8]} 28... Qxf3+ {[%clk 0:00:15]} 29. gxf3
{[%clk 0:00:40.6]} 29... Rh1+ {[%clk 0:00:12.9]} 30. Kg2 {[%clk 0:00:27.2]}
30... Rh6 {[%clk 0:00:12.9]} 31. Rg1 {[%clk 0:00:25.6]} 31... Rah8 {[%clk
0:00:09.9]} 32. Kf2+ {[%clk 0:00:25.4]} 32... Kf8 {[%clk 0:00:10.4]} 33. bxa6
{[%clk 0:00:24.6]} 33... bxa6 {[%clk 0:00:09.9]} 34. Rg2 {[%clk 0:00:25]} 34...
Bh4+ {[%clk 0:00:08.9]} 35. Ke2 {[%clk 0:00:24.8]} 35... Bg3 {[%clk 0:00:09.4]}
36. Bd3 {[%clk 0:00:21.9]} 36... a5 {[%clk 0:00:09.7]} 37. Ba3 {[%clk
0:00:20.3]} 37... Rh2 {[%clk 0:00:06.7]} 38. Rg1 {[%clk 0:00:19.7]} 38... Rxg2+
{[%clk 0:00:06.8]} 39. Rxg2 {[%clk 0:00:20.6]} 39... Rh1 {[%clk 0:00:07.3]} 40.
Bb5 {[%clk 0:00:17.9]} 40... Ra1 {[%clk 0:00:06.2]} 41. Bb2 {[%clk 0:00:18.1]}
41... Ra2 {[%clk 0:00:06.3]} 42. Kd3 {[%clk 0:00:18.6]} 42... d5 {[%clk
0:00:04]} 43. dxe5 {[%clk 0:00:16.6]} 43... dxe4+ {[%clk 0:00:03.4]} 44. Kxe4
{[%clk 0:00:17.2]} 44... c6 {[%clk 0:00:02.9]} 45. Bc4 {[%clk 0:00:16.9]} 1-0

[Event "*** SCC Grand Prix: Titled Tuesday Blitz"]
[Site "Chess.com"]
[Date "2020.06.02"]
[Round "6"]
[White "A-Fier"]
[Black "ajian"]
[Result "0-1"]
[WhiteElo "2735"]
[BlackElo "2452"]
[TimeControl "180+1"]
[EndTime "11:09:30 PDT"]
[Termination "ajian won by checkmate"]

1. d4 {[%clk 0:03:00.9]} 1... Nf6 {[%clk 0:02:59.1]} 2. c4 {[%clk 0:03:01.4]}
2... e6 {[%clk 0:02:59.1]} 3. Nc3 {[%clk 0:03:02]} 3... d5 {[%clk 0:02:59.1]} 4.
cxd5 {[%clk 0:03:01.1]} 4... Nxd5 {[%clk 0:03:00]} 5. Nf3 {[%clk 0:03:00.8]}
5... c5 {[%clk 0:02:58.6]} 6. e3 {[%clk 0:03:00.9]} 6... Nxc3 {[%clk 0:02:41]}
7. bxc3 {[%clk 0:02:58.4]} 7... Be7 {[%clk 0:02:41.6]} 8. Bd3 {[%clk 0:02:57.7]}
8... O-O {[%clk 0:02:41.1]} 9. Qc2 {[%clk 0:02:57.9]} 9... g6 {[%clk 0:02:36.6]}
10. O-O {[%clk 0:02:58]} 10... b6 {[%clk 0:02:35.7]} 11. Qe2 {[%clk 0:02:57.8]}
11... Bb7 {[%clk 0:02:35.1]} 12. e4 {[%clk 0:02:58.1]} 12... cxd4 {[%clk
0:02:28.1]} 13. cxd4 {[%clk 0:02:57.8]} 13... Nc6 {[%clk 0:02:25.8]} 14. Bb2
{[%clk 0:02:57.9]} 14... Bf6 {[%clk 0:02:24.2]} 15. e5 {[%clk 0:02:57.2]} 15...
Bg7 {[%clk 0:02:23.3]} 16. Rad1 {[%clk 0:02:56]} 16... Nb4 {[%clk 0:02:18.9]}
17. Bb1 {[%clk 0:02:51.7]} 17... Ba6 {[%clk 0:02:13.3]} 18. Qd2 {[%clk
0:02:46.3]} 18... Bxf1 {[%clk 0:02:12.3]} 19. Rxf1 {[%clk 0:02:46.3]} 19... Nd5
{[%clk 0:02:08.6]} 20. h4 {[%clk 0:02:46.5]} 20... Qe7 {[%clk 0:01:47.3]} 21. h5
{[%clk 0:02:44.7]} 21... Qb4 {[%clk 0:01:46.9]} 22. Qe2 {[%clk 0:02:35.2]} 22...
Rac8 {[%clk 0:01:32.6]} 23. a3 {[%clk 0:02:20.3]} 23... Qe7 {[%clk 0:01:26.1]}
24. Qd2 {[%clk 0:02:17.5]} 24... Rfd8 {[%clk 0:01:18.5]} 25. Be4 {[%clk
0:02:15.3]} 25... Rc7 {[%clk 0:01:11]} 26. g3 {[%clk 0:02:05.5]} 26... Rdc8
{[%clk 0:01:10.7]} 27. Kg2 {[%clk 0:02:01.4]} 27... Nc3 {[%clk 0:01:04.8]} 28.
Bxc3 {[%clk 0:02:00.5]} 28... Rxc3 {[%clk 0:01:04.6]} 29. a4 {[%clk 0:01:54.3]}
29... Qa3 {[%clk 0:00:45.5]} 30. Qf4 {[%clk 0:01:54.1]} 30... Rc1 {[%clk
0:00:38.9]} 31. Ng5 {[%clk 0:01:37.7]} 31... R8c7 {[%clk 0:00:33.2]} 32. Rxc1
{[%clk 0:01:03]} 32... Qxc1 {[%clk 0:00:32]} 33. Qh4 {[%clk 0:01:03.5]} 33... h6
{[%clk 0:00:21.4]} 34. Nf3 {[%clk 0:00:50.1]} 34... g5 {[%clk 0:00:21.5]} 35.
Qg4 {[%clk 0:00:50.7]} 35... Qd1 {[%clk 0:00:17.6]} 36. d5 {[%clk 0:00:49.7]}
36... exd5 {[%clk 0:00:13.2]} 37. Bf5 {[%clk 0:00:38.1]} 37... Rc1 {[%clk
0:00:12.8]} 38. Nh2 {[%clk 0:00:31.1]} 38... Qg1+ {[%clk 0:00:09.5]} 39. Kh3
{[%clk 0:00:31.3]} 39... Qxf2 {[%clk 0:00:06.9]} 40. Bd3 {[%clk 0:00:29.8]}
40... Rh1 {[%clk 0:00:06.3]} 41. Qc8+ {[%clk 0:00:28.3]} 41... Bf8 {[%clk
0:00:06.7]} 42. Kg4 {[%clk 0:00:24.3]} 42... Rxh2 {[%clk 0:00:06.7]} 43. e6
{[%clk 0:00:25.2]} 43... Qd4+ {[%clk 0:00:04.6]} 44. Kf5 {[%clk 0:00:25.1]}
44... Qxd3+ {[%clk 0:00:04.7]} 45. Ke5 {[%clk 0:00:25.5]} 45... Qe4+ {[%clk
0:00:04.7]} 46. Kf6 {[%clk 0:00:24.9]} 46... Rf2# {[%clk 0:00:05.2]} 0-1

[Event "*** SCC Grand Prix: Titled Tuesday Blitz"]
[Site "Chess.com"]
[Date "2020.06.02"]
[Round "6"]
[White "FlightsOfFancy"]
[Black "yonaltimur"]
[Result "0-1"]
[WhiteElo "1819"]
[BlackElo "1563"]
[TimeControl "180+1"]
[EndTime "11:09:30 PDT"]
[Termination "yonaltimur won on time"]

1. e4 {[%clk 0:03:00.9]} 1... c5 {[%clk 0:02:59.6]} 2. Nf3 {[%clk 0:03:00.8]}
2... e6 {[%clk 0:02:59.9]} 3. d4 {[%clk 0:03:01.3]} 3... cxd4 {[%clk 0:03:00.1]}
4. Nxd4 {[%clk 0:03:01.9]} 4... a6 {[%clk 0:03:00.6]} 5. Bd3 {[%clk 0:02:58.2]}
5... Qc7 {[%clk 0:02:59.6]} 6. O-O {[%clk 0:02:55.5]} 6... Nc6 {[%clk
0:02:58.3]} 7. Nxc6 {[%clk 0:02:52.3]} 7... dxc6 {[%clk 0:02:57.8]} 8. Nd2
{[%clk 0:02:45.2]} 8... e5 {[%clk 0:02:53.9]} 9. Nc4 {[%clk 0:02:37]} 9... b5
{[%clk 0:02:51.7]} 10. Ne3 {[%clk 0:02:35.6]} 10... Nf6 {[%clk 0:02:50.2]} 11.
a4 {[%clk 0:02:32.4]} 11... Bb7 {[%clk 0:02:43.9]} 12. Nf5 {[%clk 0:02:25]}
12... b4 {[%clk 0:02:29.6]} 13. Bg5 {[%clk 0:02:21.7]} 13... Nd7 {[%clk
0:02:20.1]} 14. Bc4 {[%clk 0:02:08.6]} 14... h6 {[%clk 0:02:15.6]} 15. Be3
{[%clk 0:02:00.4]} 15... g6 {[%clk 0:02:06.8]} 16. Ng3 {[%clk 0:01:56.6]} 16...
Bc5 {[%clk 0:02:03.9]} 17. Qf3 {[%clk 0:01:35.6]} 17... O-O-O {[%clk 0:01:32.1]}
18. c3 {[%clk 0:01:22.2]} 18... Bxe3 {[%clk 0:01:29.4]} 19. Qxe3 {[%clk
0:01:15.4]} 19... f5 {[%clk 0:00:47.1]} 20. exf5 {[%clk 0:01:08.5]} 20... gxf5
{[%clk 0:00:46.8]} 21. Nxf5 {[%clk 0:01:03]} 21... Kb8 {[%clk 0:00:38.2]} 22.
cxb4 {[%clk 0:01:00]} 22... Nf6 {[%clk 0:00:35]} 23. Rfc1 {[%clk 0:00:47.5]}
23... Nd5 {[%clk 0:00:27.6]} 24. Qc5 {[%clk 0:00:34.3]} 24... Nf4 {[%clk
0:00:22.1]} 25. b5 {[%clk 0:00:25.7]} 25... cxb5 {[%clk 0:00:16.4]} 26. Qxc7+
{[%clk 0:00:21.8]} 26... Kxc7 {[%clk 0:00:16.1]} 27. Bxb5+ {[%clk 0:00:20.5]}
27... Kb6 {[%clk 0:00:15.6]} 28. Bf1 {[%clk 0:00:19.2]} 28... a5 {[%clk
0:00:14.2]} 29. b4 {[%clk 0:00:17.3]} 29... axb4 {[%clk 0:00:12]} 30. a5+ {[%clk
0:00:17.3]} 30... Ka7 {[%clk 0:00:12]} 31. Rab1 {[%clk 0:00:13.3]} 31... Kb8
{[%clk 0:00:09.6]} 32. Rxb4 {[%clk 0:00:12.8]} 32... Ka7 {[%clk 0:00:09]} 33.
Rc7 {[%clk 0:00:11.5]} 33... Rb8 {[%clk 0:00:08.1]} 34. Nd6 {[%clk 0:00:04.9]}
34... Rhd8 {[%clk 0:00:05.1]} 0-1